{"text_format":"1","workbook":"xlsx","n_sheets":2,"sheets":["Avatares","CuentaCuentos"],"not_rendered":{"charts":0,"images":20,"macros":1,"external_links":0,"defined_names":2,"comments":0,"pivot_tables":0},"unopened":[],"bounds":{"document_bytes":16777216,"sheet_cells":100000,"rows_first":2000,"rows_last":500,"rows_between":2000,"halvings":0,"cell_chars":16384,"cell_head_chars":4096},"cells_cut":0,"cells_raw":0,"read":"whole","date_system":"1900"}

{"sheet":"Avatares","index":0,"n_rows":1,"n_cols":1,"rows_kept":1,"cut":false,"hidden":false,"merged":[]}
["F"]

{"sheet":"CuentaCuentos","index":1,"n_rows":118,"n_cols":9,"rows_kept":118,"cut":false,"hidden":true,"merged":[]}
[null,null,null,null,null,"ESPAÑOL","ENGLISH","РУССКИЙ","УКРАЇНСЬКА"]
[null,null,null,null,null,"\n   Avatares\n\n   * Fases, cambios, vicisitudes.\n   * Transformaciones.\n   * Representación gráfica de actores virtuales en el metaverso.","\n   Avatars\n\n    * Phases, changes, vicissitudes.\n    * Transformations.\n    * Graphic representation of virtual actors in the metaverse.","\n    Аватары\n\n    * Фазы, изменения, перипетии.\n    * Преобразования.\n    * Графическое представление виртуальных актеров в метавселенной.","\n    Аватари\n\n    * Фази, зміни, перипетії.\n    * Перетворення.\n    * Графічне зображення віртуальних акторів у метавсесвіті."]
[null,null,null,null,null,"\n    Cuenta Cuentos nº 1\n\n    Erase una vez una familia que se tuvo que separar,\n    sin poder saber si volverían a estar juntos otra vez.\n\n            El cuento comenzará haciendo clic aquí...\n","\n     Storytelling nº 1\n\n     Once upon a time there was a family that had to separate,\n     without being able to know if they would ever be together again.\n\n             The story will start by clicking here…","\n     Рассказ № 1\n\n     Жила-была семья, которой пришлось расстаться.\n     не имея возможности узнать, будут ли они когда-нибудь снова вместе.\n\n             История начнется, нажав здесь…","\n     Розповідь № 1\n\n     Колись була сім'я, яка мала розлучитися,\n     не маючи можливості знати, чи будуть вони коли-небудь знову разом.\n\n             Історія розпочнеться, натиснувши тут..."]
[null,null,null,null,null,"Avatares","Avatars","Aватары","Aватари"]
[null,null,null,null,null,"¿Quiere empezar de nuevo?","Do you want to start over?","Вы хотите начать сначала?","Ви хочете почати спочатку?"]
[null,null,null,null,null,"¿Quiere continuar?","Do you want to continue?","Вы хотите продолжить?","Ви хочете продовжити?"]
[]
["Acto","Avatar","MovX","MovY","Giro","ESPAÑOL","ENGLISH","РУССКИЙ","УКРАЇНСЬКА"]
[1,"Oxsana",15,40,90,"¡POR LA PAZ!","FOR THE PEACE!","ЗА МИР!","ЗА МИР!"]
[{"$f":"A9+1","v":2},"Iker",25,40,-90,"¡POR LA SALUD!","FOR HEALTH!","ДЛЯ ЗДОРОВЬЯ!","ЗА ЗДОРОВ'Я!"]
[{"$f":"A10+1","v":3},"Katia",35,40,-90,"¡POR EL AMOR!","FOR LOVE!","ДЛЯ ЛЮБВИ!","ЗАДЛЯ КОХАННЯ!"]
[4,"Nicolai",45,40,-90,"¡POR LA PROSPERIDAD!","FOR PROSPERITY!","ДЛЯ ПРОЦВЕТАНИЯ!","ЗА ПРОКЦІТАННЯ!"]
[5,"Oxsana",15,40,0,"¡NO A LA GUERRA!","NOT TO THE WAR!","НЕ НА ВОЙНУ!","НЕ НА ВІЙНУ!"]
[6,"Iker",25,40,0,"¡NO AL DOLOR!","NO TO PAIN!","НЕТ БОЛИ!","НІ БОЛІ!"]
[7,"Katia",35,40,0,"¡NO AL ODIO!","NO TO HATE!","НЕТ НЕНАВИСТИ!","НІ НЕНАВИСТИ!"]
[8,"Nicolai",45,40,0,"¡NO A LA POBREZA!","NO TO POVERTY!","НЕТ БЕДНОСТИ!","НІ БІДНІСТЬ!"]
[9,"Iker",32,36,-90,"SOY UNA PALOMA","I AM A PIGEON","Я ГОЛУБЬ","Я – ГОЛУБ"]
[10,"Iker",9,36,180,"SOY UN AVIÓN","I AM AN AIRPLANE","Я САМОЛЕТ","Я – ЛІТАК"]
[11,"Iker",12,22,90,"SOY UN MISIL","I AM A MISSILE","Я РАКЕТА","Я — РАКЕТА"]
[12,"Iker",28,22,0,"Y MATÉ A LA PALOMA","AND I KILLED THE PIGEON","И Я УБИЛ ГОЛУБЯ","І Я ВБИЛА ГОЛУБА"]
[13,"Katia",40,36,-135,"HIJO, ¡NO TE VAYAS MUY LEJOS!","SON, DON'T GO TOO FAR!","СЫН, НЕ УХОДИ СЛИШКОМ ДАЛЕКО!","СИНУ, НЕ ЙДИ ДАЛЕКО!"]
[14,"Nicolai",50,35,-135,"¡QUE PODAMOS VERTE!","THAT WE CAN SEE YOU!","ЧТО МЫ ВАС ВИДИМ!","ЩО МИ МОЖЕМО БАЧИТИ ВАС!"]
[15,"Nicolai",null,null,-90,"No quiero perderlo de vista","I don't want to lose sight of it","Я не хочу упускать это из виду","Я не хочу втрачати це з поля зору"]
[16,"Nicolai",null,null,-90,"en los pocos minutos que nos quedan","in the few minutes we have left","за те несколько минут, которые у нас остались","за кілька хвилин, які нам залишилися"]
[17,"Nicolai",null,null,-135,"para poder estar juntos","So we can be together","Так что мы можем быть вместе","Тому ми можемо бути разом"]
[18,"Katia",null,null,-135,"¡Mira lo feliz que es!","Look how happy he is!","Посмотрите, как он счастлив!","Подивіться, який він щасливий!"]
[19,"Katia",null,null,-135,"¡Corriendo y volando en paz!","Running and flying in peace!","Беги и лети спокойно!","Бігайте і літайте спокійно!"]
[20,"Nicolai",null,null,-90,"¡Ha salido a ti!","It has come out to you!","Это вышло у вас!","Вийшло до вас!"]
[21,"Nicolai",null,null,-90,"La alegría personificada","joy personified","олицетворенная радость","уособлена радість"]
[22,"Katia",null,null,180,"No seas zalamero","Don't be flattering","Не будь льстивым","Не будь лестим"]
[23,"Katia",null,null,90,"Que su energía es la tuya","That his energy is yours","Что его энергия твоя","Що його енергія — твоя"]
[24,"Nicolai",null,null,-90,"Hablando de energía","talking about energy","говоря об энергии","говорити про енергетику"]
[25,"Nicolai",null,null,-45,"Tu amiga,\n¿podrá con él?","Your friend,\nwill she be able to handle him?","Твой друг,\r\nсможет ли она справиться с ним?","Твій друг,\nчи зможе вона впоратися з ним?"]
[26,"Katia",null,null,90,"¡Seguro que sí!","Surely yes!","Конечно да!","Звичайно, так!"]
[27,"Katia",null,null,45,"Que no haya tenido hijos","That he has not had children","Что у него нет детей","Що він не мав дітей"]
[28,"Katia",null,null,0,"no la invalida como mujer","does not invalidate her as a woman","не делает ее недействительной как женщину","не визнає її недійсною як жінку"]
[29,"Nicolai",null,null,-90,"Ya se cuánto quiere a nuestro hijo","I know how much she loves our son","Я знаю, как сильно она любит нашего сына","Я знаю, як вона любить нашого сина"]
[30,"Nicolai",null,null,-90,"que desde que nació","that ever since he was born","что с тех пор как он родился","що з тих пір, як він народився"]
[31,"Nicolai",null,null,-90,"ha sido su segunda madre","she has been his second mother","она была его второй матерью","вона була його другою матір'ю"]
[32,"Nicolai",null,null,-135,"Por eso me quedo más tranquilo","That's why I stay calmer","Вот почему я остаюсь спокойнее","Тому я залишаюся спокійнішим"]
[33,"Katia",null,null,135,"Mi amiga nos acogió cuando llegamos","My friend welcomed us when we arrived","Мой друг приветствовал нас, когда мы приехали","Мій друг привітав нас, коли ми приїхали"]
[34,"Katia",null,null,90,"antes de que naciera en esta Tierra","before she was born on this Earth","до того, как она родилась на этой Земле","до того, як вона народилася на цій Землі"]
[35,"Nicolai",null,null,-90,"¡Mira!\n¡Ahí está!","Sight!\nThere she is!","Зрение!\r\nВот она!","Погляд!\nОсь вона!"]
[36,"Oxsana",14,36,90,"¡HOLA PAREJA!","HI COUPLE!","ПРИВЕТ ПАРА!","ПРИВІТ ПАРА!"]
[37,"Oxsana",null,null,135,"¿Dónde está vuestro hijo?","Where is your son?","Где твой сын?","Де твій син?"]
[38,"Oxsana",null,null,90,"¡Que me muero de ganas de achucharlo!","I'm dying to cuddle him!","Я умираю, чтобы обнять его!","Я вмираю від бажання його обійняти!"]
[39,"Katia",null,null,-135,"HIJO ¡VEN!\n¡HA LLEGADO OXSANA!","SON COME!\r\nOXSANA HAS ARRIVED!","СЫН ПРИЕЗЖАЙ!\r\nОКСАНА ПРИБЫЛА!","СИН ПРИЙДИ!\nОКСАНА ПРИБУЛА!"]
[40,"Iker",null,null,45,"¡NO QUIERO!\n¡QUE AÚN ESTOY JUGANDO!","I DON'T WANT TO!\nI'M STILL PLAYING!","Я НЕ ХОЧУ!\r\nЯ ПРОДОЛЖАЮ ИГРАТЬ!","Я НЕ ХОЧУ!\nЯ ВЖЕ ГРАЮ!"]
[41,"Oxsana",null,null,135,"¡Que feliz está! ¡Dejadlo jugar un poco más!","How happy is he! Let him play some more!","Как он счастлив! Пусть еще поиграет!","Який він щасливий! Нехай ще пограє!"]
[42,"Oxsana",null,null,90,"¡Bueno!\n¿Ya tenéis todo preparado?","Okay!\r\nDo you have everything ready?","Хорошо!\r\nУ тебя все готово?","Гаразд!\r\nУ вас все готове?"]
[43,"Katia",null,null,-90,"Es imposible estar preparado","It's impossible to be prepared","Невозможно быть готовым","Підготуватися неможливо"]
[44,"Katia",null,null,-45,"para un avatar como éste","for an avatar like this","за такую аватарку","за такий аватар"]
[45,"Nicolai",null,null,-45,"Ya tengo listo el auto para irnos","I already have the car ready to go","У меня уже есть машина, готовая к работе","Машина в мене вже готова"]
[46,"Nicolai",null,null,0,"aunque no se si aguantará","I don't know if it will hold though","хотя не знаю выдержит ли","Хоча я не знаю, чи витримає"]
[47,"Nicolai",null,null,-45,"pues nunca ha hecho tantos kilómetros","because it has never done so many kilometers","потому что он никогда не делал столько километров","тому що ніколи не проходив стільки кілометрів"]
[48,"Nicolai",null,null,-90,"en un viaje tan largo y doloroso","on a journey so long and painful","в путешествии так долго и мучительно","у такій довгій і болісній подорожі"]
[49,"Oxsana",null,null,45,"Vosotros habéis conseguido salir siempre bien","You have always managed to come out well","Тебе всегда удавалось хорошо выходить","Вам завжди вдавалося добре виходити"]
[50,"Oxsana",null,null,0,"de todos los avatares de vuestras vidas","of all the avatars of your lives","всех аватаров вашей жизни","з усіх аватарів твого життя"]
[51,"Katia",null,null,0,"Pero esta vez no es como la pandemia","But this time it's not like the pandemic","Но на этот раз все не так, как пандемия","Але цього разу це не так, як пандемія"]
[52,"Katia",null,null,0,"que la pasamos todos juntos","that we all spend together","что мы все проводим вместе","що ми всі разом проводимо"]
[53,"Katia",null,null,-45,"Ahora dejamos atrás a nuestro hijo","Now we leave our son behind","Теперь мы оставляем нашего сына позади","Тепер ми залишаємо сина"]
[54,"Katia",null,null,-90,"sin saber si lo volveremos a ver","without knowing if we will see him again","не зная, увидим ли мы его снова","не знаючи, чи побачимо ми його знову"]
[55,"Nicolai",null,null,-90,"Mujer, no pienses así","Woman, don't think like that","Женщина, не думай так","Жінко, не думай так"]
[56,"Nicolai",null,null,-90,"Que pronto estaremos aquí otra vez ","That soon we'll be here again","Что скоро мы снова будем здесь","Що скоро ми знову будемо тут"]
[57,"Katia",null,null,-45,"¡Nunca hemos ido a una Tierra tan insegura!","We've never been to an Earth so insecure!","Мы никогда не были на такой небезопасной Земле!","Ми ніколи не були на Землі, настільки небезпечній!"]
[58,"Nicolai",null,null,-90,"Pero intentaremos seguir juntos","But we'll try to stay together","Но мы постараемся остаться вместе","Але ми будемо намагатися залишатися разом"]
[59,"Oxsana",null,null,45,"Como los dos sois médicos","Since you are both doctors","Так как вы оба врачи","Оскільки ви обидва лікарі"]
[60,"Oxsana",null,null,90,"Seguro que os destinan al mismo hospital","Surely they send you to the same hospital","Наверняка вас отправят в ту же больницу","Напевно, вас відправлять в ту саму лікарню"]
[61,"Katia",null,null,-90,"Eso deseo y espero por nuestro bien","That I wish and I hope for our good","Чего я желаю и надеюсь на наше добро","Цього я бажаю і сподіваюся на наше добро"]
[62,"Nicolai",null,null,-45,"Hoy hemos dejado el hospital","Today we have left the hospital","Сегодня мы вышли из больницы","Сьогодні ми вийшли з лікарні"]
[63,"Nicolai",null,null,0,"en el que hemos pasado dos años","in which we have spent two years","в котором мы провели два года","в якому ми провели два роки"]
[64,"Nicolai",null,null,-90,"luchando contra la pandemia","fighting the pandemic","борьба с пандемией","боротьба з пандемією"]
[65,"Katia",null,null,0,"Ha sido muy emotivo decir adiós","It was very emotional to say goodbye","Было очень эмоционально прощаться","Прощатися було дуже емоційно"]
[66,"Katia",null,null,-45,"a todos los sanitarios que siguen","to all the health workers who follow","всем медработникам, которые следуют","всім медичним працівникам, які слідкують"]
[67,"Katia",null,null,-90,"plantándole cara al coronavirus ","standing up to the coronavirus","противостоять коронавирусу","протистояти коронавірусу"]
[68,"Oxsana",null,null,135,"Os van a echar mucho de menos","They will miss you a lot","Они будут очень скучать по тебе","Вони будуть дуже сумувати за тобою"]
[69,"Oxsana",null,null,90,"¡Sois unos luchadores!\n¡Seguid así!","You guys are fighters!\r\nKeep going!","Ребята, вы бойцы!\nПродолжать идти!","Ви, хлопці, бійці!\nПродовжувати йти!"]
[70,"Oxsana",null,null,135,"¡Curando heridos y enfermos!","Healing the wounded and sick!","Исцеление раненых и больных!","Зцілення поранених і хворих!"]
[{"$f":"A78+1","v":71},"Katia",null,null,-135,"¡Eso haremos! ¡Mientras sigamos vivos!","We will do that! As long as we're still alive!","Мы сделаем это! Пока мы еще живы!","Ми це зробимо! Поки ми ще живі!"]
[72,"Nicolai",null,null,-90,"Vale de cháchara, ¡que tenemos que irnos!","The chit chat is over. We have to go!","Чат закончился. Мы должны идти!","Спілкування закінчено. Нам потрібно йти!"]
[73,"Nicolai",null,null,-135,"¡IKER!\n¡VUELVE!","IKER!\nCOMES BACK!","ИКЕР!\r\nВОЗВРАЩАЕТСЯ!","ІКЕР!\nПОВЕРТАЄТЬСЯ!"]
[74,"Iker",28,35,0,"¡YA ESTOY AQUÍ!","I'M ALREADY HERE!","Я УЖЕ ЗДЕСЬ!","Я ВЖЕ ТУТ!"]
[75,"Katia",null,null,-135,"Saluda a Oxsana","Say hello to Oxsana","Передай привет Оксане","Привітайся з Оксаною"]
[76,"Iker",null,null,-45,"Hola Oxsana","Hello Oxsana","Привет Оксана","Привіт Оксана"]
[77,"Oxsana",null,null,45,"Hola Iker, ¿a que te gusta mucho la fuente?","Hello Iker, how do you like the font a lot?","Привет, Икер, как тебе шрифт?","Привіт, Айкер, як тобі дуже подобається шрифт?"]
[78,"Iker",null,null,-90,"¡¡¡ Siii !!!","Yessss !!!","Дасс!!!","Такссс!!!"]
[79,"Iker",null,null,-90,"¡ME ENCANTAN LOS CHORROS DE AGUA!","I LOVE WATER JETS!","Я ОБОЖАЮ СТРУИ ВОДЫ!","Я ЛЮБЛЮ ВОДЯНІ СМЕСІ!"]
[80,"Katia",null,null,-135,"¿No te habrás mojado? ¿verdad?","Didn't you get wet? truth?","Ты не промок? правда?","Ви не промокли? правда?"]
[81,"Iker",null,null,0,"No mamá, que no quiero mojarme","No mom, I don't want to get wet","Нет, мама, я не хочу промокнуть","Ні, мамо, я не хочу промокнути"]
[82,"Iker",null,null,45,"¡Soy más rápido que los disparos de agua!","I'm faster than water shots!","Я быстрее, чем водные выстрелы!","Я швидший за воду!"]
[83,"Nicolai",null,null,-135,"¡Ten cuidado que te pueden alcanzar!","Be careful they can hit you!","Будьте осторожны, они могут ударить вас!","Будьте обережні, вони можуть вас вдарити!"]
[84,"Oxsana",null,null,45,"Di a tus papás cuánto los quieres","Tell your parents how much you love them","Скажи своим родителям, как сильно ты их любишь","Скажіть батькам, як сильно ви їх любите"]
[85,"Katia",null,null,-45,"Ven a despedirte de nosotros","Come say goodbye to us","Приходите попрощаться с нами","Приходь попрощатися з нами"]
[86,"Iker",null,null,90,"Mamá,\n¿ya es la hora?","Mom,\r\nIt's time?","Мама,\r\nПора?","Мамо,\r\nНастав час?"]
[87,"Katia",null,null,-90,"Sí, hijo mío. Ahora tenemos que irnos.","Yes, my son. Now we have to go.","Да, мой сын. Теперь нам нужно идти.","Так, сину мій. Тепер нам треба йти."]
[88,"Iker",35,36,90,"Mamá, papá,\n¡os quiero mucho!","Mom, Dad,\nI love you!","Мама, папа,\nЯ тебя люблю!","Мама тато,\r\nЯ тебе люблю!"]
[89,"Nicolai",45,35,-90,"Nosotros también te queremos mucho","We love you so much too","Мы тоже тебя очень любим","Ми теж тебе дуже любимо"]
[90,"Nicolai",null,null,-45,"Y por eso te dejamos en las mejores manos","And that's why we leave you in the best hands","И именно поэтому мы оставляем вас в лучших руках","І тому ми віддаємо вас у найкращі руки"]
[91,"Katia",null,null,-90,"Con nuestra mejor amiga","With our best friend","С нашим лучшим другом","З нашим найкращим другом"]
[92,"Katia",null,null,-90,"que cuidará de tí hasta que volvamos","that she will take care of you until we return","что она будет заботиться о тебе, пока мы не вернемся","хто буде піклуватися про вас, поки ми не повернемося"]
[93,"Iker",null,null,90,"¿Volveréis pronto?","Will you be back soon?","Ты скоро вернешься?","Ти скоро повернешся?"]
[94,"Nicolai",null,null,45,"En cuánto curemos a todos los heridos","As long as we heal all the wounded","Пока мы лечим всех раненых","Поки ми лікуємо всіх поранених"]
[95,"Nicolai",65,35,90,"Me voy a buscar el auto","I'm going to look for the car","пойду искать машину","Я йду шукати машину"]
[96,"Katia",null,null,-45,"Y cuando no haya ningún enfermo","And when there is no sick","И когда нет больных","І коли немає хворого"]
[97,"Iker",null,null,45,"Y si me pongo yo malo","And if I get sick","И если я заболею","А якщо я захворію"]
[98,"Iker",null,null,90,"¿vendréis conmigo?","will you come with me?","Ты пойдешь со мной?","ти підеш зі мною?"]
[99,"Oxsana",null,null,90,"Tus papás volverán pronto contigo","Your parents will be back with you soon","Твои родители скоро вернутся к тебе","Твої батьки скоро повернуться до тебе"]
[100,"Katia",44,36,-90,"Quiere mucho a Oxsana","You must love Oxsana very much","Ты должно быть очень любишь Оксану","Ти, мабуть, дуже любиш Оксану"]
[101,"Iker",35,35,45,"Eso haré mamá hasta que vuelvas","I'll do that mom until you come back","Я буду делать это, мама, пока ты не вернешься","Я буду робити це мамо, поки ти не повернешся"]
[102,"Auto",44,38,-45,"Brumm Brumm","Brumm Brumm","Брамм Брамм","Брум Брумм"]
[103,"Nicolai",48,35,-45,"Ya estoy aquí","I'm already here","я уже здесь","я вже тут"]
[104,"Nicolai",null,null,-90,"Mujer, despídete de tu amiga","Woman, say goodbye to your friend","Женщина, попрощайся со своим другом","Жінко, попрощайся зі своїм другом"]
[105,"Katia",null,null,-45,"Hasta pronto. Cuidaros mutuamente","See you soon. Take care of each other","До скорого. Берегите друг друга","До зустрічі. Бережіть один одного"]
[106,"Oxsana",25,35,45,"Lo mismo digo. Ayudad en lo que podáis","I'm wondering the same. Help where you can","Мне интересно то же самое. Помогите, чем сможете","Мені так само цікаво. Допоможіть, де можете"]
[107,"Nicolai",null,null,-45,"Hasta pronto, hijo de mi corazón…","See you soon, son of my heart...","До скорой встречи, сын моего сердца...","До скорої зустрічі, сину мого серця..."]
[108,"Auto",-1,38,-45,"Brumm Brumm","Brumm Brumm","Брамм Брамм","Брум Брумм"]
[109,"Iker",null,null,-45,"Si no volvéis, cuando sea mayor OS BUSCARÉ…","If you don't come back, when I'm older I'LL LOOK FOR YOU...","Когда я стану старше, Я БУДУ ТЕБЯ ИСКАТЬ…","Коли я стану старшим, я ТЕБЕ ШУКАТИМУ…"]
["Total",{"$f":"SUBTOTAL(103,TablaCuento[Avatar])","v":109}]